[Event "Chess Stars Match"]
[Site "Teatro Capri, Paterna, Spain"]
[Date "2019.12.15"]
[Round "4.2"]
[White "Macias Pino, Diego"]
[Black "Hamitevici, Vladimir"]
[Result "1-0"]
[TimeControl "7m+3s"]
[BlackTitle "GM"]
[WhiteFideId "24529133"]
[BlackFideId "13902393"]
[WhiteElo "2161"]
[BlackElo "2453"]

1. e4 {[%clk 00:06:05]} {[%emt 00:02:58]} g6 {[%clk 00:03:05]} {[%emt
00:00:01]} 2. Nc3 {[%clk 00:06:05]} {[%emt 00:00:04]} Bg7 {[%clk 00:03:07]}
{[%emt 00:00:02]} 3. d4 {[%clk 00:06:06]} {[%emt 00:00:02]} c6 {[%clk
00:03:08]} {[%emt 00:00:02]} 4. f4 {[%clk 00:06:06]} {[%emt 00:00:02]} d5
{[%clk 00:03:10]} {[%emt 00:00:01]} 5. e5 {[%clk 00:06:04]} {[%emt 00:00:06]}
Nh6 {[%clk 00:03:11]} {[%emt 00:00:01]} 6. Nf3 {[%clk 00:06:05]} {[%emt
00:00:02]} Bg4 {[%clk 00:03:10]} {[%emt 00:00:04]} 7. Be2 {[%clk 00:06:04]}
{[%emt 00:00:05]} O-O {[%clk 00:03:02]} {[%emt 00:00:10]} 8. O-O {[%clk
00:06:00]} {[%emt 00:00:07]} f6 {[%clk 00:03:01]} {[%emt 00:00:05]} 9. Be3
{[%clk 00:05:19]} {[%emt 00:00:44]} Nf5 {[%clk 00:02:29]} {[%emt 00:00:35]} 10.
Bf2 {[%clk 00:05:20]} {[%emt 00:00:01]} Bh6 {[%clk 00:02:31]} 11. g3 {[%clk
00:04:43]} {[%emt 00:00:41]} Nd7 {[%clk 00:01:58]} {[%emt 00:00:36]} 12. Kg2
{[%clk 00:04:45]} {[%emt 00:00:01]} Bxf3+ {[%clk 00:01:45]} {[%emt 00:00:16]}
13. Bxf3 {[%clk 00:04:41]} {[%emt 00:00:07]} fxe5 {[%clk 00:01:47]} {[%emt
00:00:02]} 14. dxe5 {[%clk 00:04:31]} {[%emt 00:00:13]} e6 {[%clk 00:01:49]} 15.
h4 {[%clk 00:03:49]} {[%emt 00:00:45]} Kh8 {[%clk 00:01:08]} {[%emt 00:00:43]}
16. Rh1 {[%clk 00:03:42]} {[%emt 00:00:10]} Qe7 {[%clk 00:00:55]} {[%emt
00:00:17]} 17. Ne2 {[%clk 00:02:58]} {[%emt 00:00:48]} Qf7 {[%clk 00:00:55]}
{[%emt 00:00:02]} 18. Qd3 {[%clk 00:02:26]} {[%emt 00:00:35]} b6 {[%clk
00:00:37]} {[%emt 00:00:22]} 19. g4 {[%clk 00:02:06]} {[%emt 00:00:22]} Ne7
{[%clk 00:00:36]} {[%emt 00:00:04]} 20. g5 {[%clk 00:02:08]} {[%emt 00:00:01]}
Bg7 {[%clk 00:00:32]} {[%emt 00:00:08]} 21. h5 {[%clk 00:01:54]} {[%emt
00:00:17]} Bxe5 {[%clk 00:00:33]} {[%emt 00:00:02]} 22. fxe5 {[%clk 00:01:55]}
{[%emt 00:00:01]} Nxe5 {[%clk 00:00:32]} {[%emt 00:00:04]} 23. Bd4 {[%clk
00:01:57]} {[%emt 00:00:01]} gxh5 {[%clk 00:00:04]} {[%emt 00:00:30]} 24. Bxe5+
{[%clk 00:01:51]} {[%emt 00:00:10]} Kg8 {[%clk 00:00:07]} 25. Bf6 {[%clk
00:01:40]} {[%emt 00:00:14]} Ng6 {[%clk 00:00:08]} {[%emt 00:00:02]} 26. Bxh5
{[%clk 00:01:39]} {[%emt 00:00:04]} e5 {[%clk 00:00:06]} {[%emt 00:00:04]} 27.
Bxg6 {[%clk 00:01:12]} {[%emt 00:00:29]} Qxg6 {[%clk 00:00:09]} {[%emt
00:00:01]} 28. Qxg6+ {[%clk 00:01:12]} {[%emt 00:00:03]} hxg6 {[%clk 00:00:11]}
{[%emt 00:00:01]} 29. Bxe5 {[%clk 00:01:01]} {[%emt 00:00:15]} Rfe8 {[%clk
00:00:06]} {[%emt 00:00:08]} 30. Rh8+ {[%clk 00:01:03]} {[%emt 00:00:01]} Kf7
{[%clk 00:00:08]} 31. Rf1+ {[%clk 00:01:04]} {[%emt 00:00:02]} Ke6 {[%clk
00:00:09]} {[%emt 00:00:02]} 32. Rxe8+ {[%clk 00:01:01]} {[%emt 00:00:06]} Rxe8
{[%clk 00:00:11]} 33. Bc3 {[%clk 00:01:03]} c5 {[%clk 00:00:07]} {[%emt
00:00:07]} 34. Rf6+ {[%clk 00:01:03]} {[%emt 00:00:02]} Ke7 {[%clk 00:00:06]}
{[%emt 00:00:04]} 35. Rxg6 {[%clk 00:01:03]} {[%emt 00:00:04]} d4 {[%clk
00:00:09]} 36. Bd2 {[%clk 00:01:04]} {[%emt 00:00:02]} Kf7 {[%clk 00:00:10]}
{[%emt 00:00:02]} 37. Rf6+ {[%clk 00:01:06]} Kg7 {[%clk 00:00:12]} 38. Nf4
{[%clk 00:01:06]} {[%emt 00:00:04]} Re5 {[%clk 00:00:11]} {[%emt 00:00:05]} 39.
Ne6+ {[%clk 00:01:01]} {[%emt 00:00:08]} Kg8 {[%clk 00:00:09]} {[%emt
00:00:05]} 40. g6 {[%clk 00:01:00]} {[%emt 00:00:04]} Re2+ {[%clk 00:00:07]}
{[%emt 00:00:04]} 41. Kf3 {[%clk 00:01:02]} {[%emt 00:00:01]} Rxd2 {[%clk
00:00:09]} {[%emt 00:00:01]} 42. Rf8# {[%clk 00:01:04]} {[%emt 00:00:01]} 1-0

[Event "Chess Stars Match"]
[Site "Teatro Capri, Paterna, Spain"]
[Date "2019.12.15"]
[Round "4.3"]
[White "Vallejo Pons, Francisco"]
[Black "Injac, Teodora"]
[Result "1-0"]
[TimeControl "7m+3s"]
[WhiteTitle "GM"]
[BlackTitle "WIM"]
[WhiteFideId "2205530"]
[BlackFideId "932400"]
[WhiteElo "2704"]
[BlackElo "2284"]

1. d4 {[%clk 00:03:05]} Nf6 {[%clk 00:04:05]} {[%emt 00:00:02]} 2. c4 {[%clk
00:03:05]} {[%emt 00:00:01]} g6 {[%clk 00:04:06]} {[%emt 00:00:02]} 3. Bg5
{[%clk 00:03:07]} {[%emt 00:00:01]} Bg7 {[%clk 00:04:08]} {[%emt 00:00:02]} 4.
Nc3 {[%clk 00:03:08]} {[%emt 00:00:01]} d6 {[%clk 00:04:09]} {[%emt 00:00:02]}
5. e4 {[%clk 00:03:09]} {[%emt 00:00:02]} O-O {[%clk 00:04:09]} {[%emt
00:00:03]} 6. Qd2 {[%clk 00:03:11]} {[%emt 00:00:01]} c5 {[%clk 00:04:06]}
{[%emt 00:00:06]} 7. d5 {[%clk 00:03:12]} {[%emt 00:00:02]} b5 {[%clk
00:04:06]} {[%emt 00:00:03]} 8. cxb5 {[%clk 00:03:13]} {[%emt 00:00:02]} a6
{[%clk 00:04:08]} 9. a4 {[%clk 00:03:09]} {[%emt 00:00:07]} Qa5 {[%clk
00:04:10]} {[%emt 00:00:02]} 10. f3 {[%clk 00:02:24]} {[%emt 00:00:47]} Nbd7
{[%clk 00:04:02]} {[%emt 00:00:11]} 11. Nh3 {[%clk 00:02:20]} {[%emt 00:00:07]}
Nb6 {[%clk 00:03:50]} {[%emt 00:00:15]} 12. Nf2 {[%clk 00:02:20]} {[%emt
00:00:03]} axb5 {[%clk 00:03:37]} {[%emt 00:00:17]} 13. Bxb5 {[%clk 00:02:20]}
{[%emt 00:00:04]} Ba6 {[%clk 00:03:29]} {[%emt 00:00:11]} 14. Bxa6 {[%clk
00:01:11]} {[%emt 00:01:13]} Qxa6 {[%clk 00:03:28]} {[%emt 00:00:04]} 15. Qe2
{[%clk 00:01:10]} {[%emt 00:00:04]} Rfb8 {[%clk 00:03:19]} {[%emt 00:00:12]} 16.
Bc1 {[%clk 00:00:47]} {[%emt 00:00:26]} Nfd7 {[%clk 00:02:27]} {[%emt
00:00:54]} 17. Nfd1 {[%clk 00:00:37]} {[%emt 00:00:14]} Ne5 {[%clk 00:01:45]}
{[%emt 00:00:45]} 18. Qxa6 {[%clk 00:00:38]} {[%emt 00:00:02]} Rxa6 {[%clk
00:01:48]} 19. Kd2 {[%clk 00:00:28]} {[%emt 00:00:12]} Bh6+ {[%clk 00:01:23]}
{[%emt 00:00:28]} 20. Kc2 {[%clk 00:00:27]} {[%emt 00:00:04]} Bxc1 {[%clk
00:01:19]} {[%emt 00:00:07]} 21. Kxc1 {[%clk 00:00:27]} {[%emt 00:00:02]} Nd3+
{[%clk 00:00:50]} {[%emt 00:00:31]} 22. Kd2 {[%clk 00:00:21]} {[%emt 00:00:09]}
Ne5 {[%clk 00:00:31]} {[%emt 00:00:23]} 23. Kc2 {[%clk 00:00:16]} {[%emt
00:00:08]} Nbc4 {[%clk 00:00:31]} {[%emt 00:00:03]} 24. b3 {[%clk 00:00:13]}
{[%emt 00:00:06]} Na5 {[%clk 00:00:25]} {[%emt 00:00:09]} 25. Rb1 {[%clk
00:00:14]} {[%emt 00:00:03]} Rb4 {[%clk 00:00:19]} {[%emt 00:00:09]} 26. Na2
{[%clk 00:00:12]} {[%emt 00:00:05]} Rd4 {[%clk 00:00:11]} {[%emt 00:00:10]} 27.
Ndc3 {[%clk 00:00:13]} {[%emt 00:00:02]} c4 {[%clk 00:00:05]} {[%emt 00:00:09]}
28. b4 {[%clk 00:00:14]} {[%emt 00:00:02]} Nb3 {[%clk 00:00:07]} {[%emt
00:00:01]} 29. Rhd1 {[%clk 00:00:14]} {[%emt 00:00:03]} Rxd1 {[%clk 00:00:06]}
{[%emt 00:00:04]} 30. Rxd1 {[%clk 00:00:15]} {[%emt 00:00:02]} Nd3 {[%clk
00:00:07]} {[%emt 00:00:02]} 31. b5 {[%clk 00:00:13]} {[%emt 00:00:05]} Ra5
{[%clk 00:00:06]} {[%emt 00:00:04]} 32. Rxd3 {[%clk 00:00:12]} {[%emt
00:00:04]} Na1+ {[%clk 00:00:08]} {[%emt 00:00:01]} 33. Kd2 {[%clk 00:00:07]}
{[%emt 00:00:08]} cxd3 {[%clk 00:00:08]} {[%emt 00:00:02]} 34. Kxd3 {[%clk
00:00:09]} {[%emt 00:00:01]} Nb3 {[%clk 00:00:10]} {[%emt 00:00:02]} 35. Kc4
{[%clk 00:00:09]} {[%emt 00:00:03]} Nc5 {[%clk 00:00:10]} {[%emt 00:00:03]} 36.
Kb4 {[%clk 00:00:08]} {[%emt 00:00:04]} Ra8 {[%clk 00:00:12]} 37. b6 {[%clk
00:00:09]} {[%emt 00:00:03]} Kf8 {[%clk 00:00:10]} {[%emt 00:00:05]} 38. a5
{[%clk 00:00:10]} {[%emt 00:00:02]} Ke8 {[%clk 00:00:11]} {[%emt 00:00:01]} 39.
Kb5 {[%clk 00:00:12]} Kd7 {[%clk 00:00:13]} {[%emt 00:00:01]} 40. Nb4 {[%clk
00:00:13]} {[%emt 00:00:02]} Nb3 {[%clk 00:00:06]} {[%emt 00:00:10]} 41. Nc6
{[%clk 00:00:15]} {[%emt 00:00:02]} Kc8 {[%clk 00:00:04]} {[%emt 00:00:04]} 42.
a6 {[%clk 00:00:14]} {[%emt 00:00:04]} Nc5 {[%emt 00:00:03]} 43. Nxe7+ {[%clk
00:00:10]} {[%emt 00:00:05]} Kd7 {[%clk 00:00:07]} {[%emt 00:00:03]} 44. b7
{[%clk 00:00:11]} {[%emt 00:00:02]} Re8 {[%clk 00:00:04]} {[%emt 00:00:05]} 45.
Nc6 {[%clk 00:00:12]} {[%emt 00:00:02]} 1-0

[Event "Chess Stars Match"]
[Site "Teatro Capri, Paterna, Spain"]
[Date "2019.12.15"]
[Round "4.4"]
[White "Arizmendi Martinez, Julen Luis"]
[Black "Randazzo, Adrian"]
[Result "1-0"]
[TimeControl "7m+3s"]
[WhiteTitle "GM"]
[BlackTitle "FM"]
[WhiteFideId "2205092"]
[BlackFideId "114251"]
[WhiteElo "2511"]
[BlackElo "2230"]

1. e4 {[%clk 00:03:04]} {[%emt 00:00:02]} c5 {[%clk 00:04:02]} {[%emt
00:00:05]} 2. Nf3 {[%clk 00:03:04]} {[%emt 00:00:02]} d6 {[%clk 00:04:03]}
{[%emt 00:00:02]} 3. d4 {[%clk 00:03:06]} {[%emt 00:00:01]} cxd4 {[%clk
00:04:04]} {[%emt 00:00:01]} 4. Nxd4 {[%clk 00:03:07]} {[%emt 00:00:02]} Nf6
{[%clk 00:04:04]} {[%emt 00:00:04]} 5. Nc3 {[%clk 00:03:09]} {[%emt 00:00:01]}
g6 {[%clk 00:04:04]} {[%emt 00:00:03]} 6. Bc4 {[%clk 00:03:09]} {[%emt
00:00:03]} a6 {[%clk 00:03:56]} {[%emt 00:00:11]} 7. O-O {[%clk 00:03:03]}
{[%emt 00:00:08]} Bg7 {[%clk 00:03:57]} {[%emt 00:00:02]} 8. Re1 {[%clk
00:03:02]} {[%emt 00:00:04]} O-O {[%clk 00:03:55]} {[%emt 00:00:05]} 9. h3
{[%clk 00:02:53]} {[%emt 00:00:13]} b5 {[%clk 00:03:55]} {[%emt 00:00:03]} 10.
Bb3 {[%clk 00:02:38]} Bb7 {[%clk 00:03:55]} {[%emt 00:00:20]} 11. a4 {[%clk
00:02:37]} b4 {[%clk 00:03:28]} {[%emt 00:00:35]} 12. Nd5 {[%clk 00:02:38]} e6
{[%clk 00:03:21]} {[%emt 00:00:11]} 13. Nxf6+ {[%clk 00:01:54]} Bxf6 {[%clk
00:03:14]} {[%emt 00:00:58]} 14. a5 {[%clk 00:01:50]} Nd7 {[%clk 00:02:55]}
{[%emt 00:00:28]} 15. Bh6 {[%clk 00:01:19]} Re8 {[%clk 00:02:56]} {[%emt
00:00:36]} 16. Ba4 {[%clk 00:01:19]} Rc8 {[%clk 00:02:50]} {[%emt 00:00:12]} 17.
Qd2 {[%clk 00:01:20]} Rc4 {[%clk 00:02:25]} {[%emt 00:00:31]} 18. Be3 {[%clk
00:00:46]} Rf8 {[%clk 00:01:30]} {[%emt 00:01:35]} 19. Bb3 {[%clk 00:00:45]}
Rc8 {[%clk 00:01:04]} {[%emt 00:00:33]} 20. Qxb4 {[%clk 00:00:46]} Bxe4 {[%clk
00:01:02]} {[%emt 00:00:07]} 21. Nxe6 {[%clk 00:00:44]} {[%emt 00:00:05]} fxe6
{[%clk 00:00:48]} {[%emt 00:00:17]} 22. Qxe4 {[%clk 00:00:43]} {[%emt
00:00:03]} Kh8 {[%clk 00:00:34]} {[%emt 00:00:18]} 23. Qxe6 {[%clk 00:00:37]}
{[%emt 00:00:10]} Bxb2 {[%clk 00:00:27]} {[%emt 00:00:09]} 24. Rad1 {[%clk
00:00:38]} {[%emt 00:00:02]} Bc3 {[%clk 00:00:22]} {[%emt 00:00:09]} 25. Rxd6
{[%clk 00:00:29]} {[%emt 00:00:12]} Bxe1 {[%clk 00:00:17]} {[%emt 00:00:08]} 26.
Bd4+ {[%clk 00:00:25]} {[%emt 00:00:07]} 1-0

[Event "Chess Stars Match"]
[Site "Teatro Capri, Paterna, Spain"]
[Date "2019.12.15"]
[Round "4.5"]
[White "Semenova, Elena"]
[Black "Povshednyi, Ivan"]
[Result "0-1"]
[TimeControl "7m+3s"]
[WhiteTitle "WIM"]
[WhiteFideId "24125148"]
[BlackFideId "14190907"]
[WhiteElo "2290"]
[BlackElo "1795"]

1. e4 {[%clk 00:04:05]} c5 {[%clk 00:06:06]} 2. Nf3 {[%clk 00:04:06]} {[%emt
00:00:01]} e6 {[%clk 00:06:09]} 3. d4 {[%clk 00:04:03]} {[%emt 00:00:07]} cxd4
{[%clk 00:06:10]} 4. Nxd4 {[%clk 00:04:05]} {[%emt 00:00:01]} Nf6 {[%clk
00:06:12]} {[%emt 00:00:01]} 5. Bd3 {[%clk 00:03:56]} {[%emt 00:00:12]} d6
{[%clk 00:06:13]} {[%emt 00:00:02]} 6. c4 {[%clk 00:03:56]} {[%emt 00:00:03]}
a6 {[%clk 00:06:15]} 7. Nc3 {[%clk 00:03:58]} {[%emt 00:00:01]} Be7 {[%clk
00:06:16]} {[%emt 00:00:02]} 8. O-O {[%clk 00:03:59]} {[%emt 00:00:02]} O-O
{[%clk 00:06:17]} {[%emt 00:00:02]} 9. Be3 {[%clk 00:03:51]} {[%emt 00:00:11]}
Nbd7 {[%clk 00:06:18]} {[%emt 00:00:02]} 10. a4 {[%clk 00:03:38]} {[%emt
00:00:16]} Ne5 {[%clk 00:06:15]} {[%emt 00:00:05]} 11. Be2 {[%clk 00:03:37]}
{[%emt 00:00:04]} Bd7 {[%clk 00:06:17]} {[%emt 00:00:02]} 12. f4 {[%clk
00:03:26]} {[%emt 00:00:14]} Nc6 {[%clk 00:06:17]} {[%emt 00:00:03]} 13. Nxc6
{[%clk 00:03:11]} {[%emt 00:00:18]} Bxc6 {[%clk 00:06:19]} {[%emt 00:00:02]} 14.
Bf3 {[%clk 00:03:11]} {[%emt 00:00:03]} Rc8 {[%clk 00:06:16]} {[%emt 00:00:06]}
15. Qe2 {[%clk 00:02:59]} {[%emt 00:00:15]} Qa5 {[%clk 00:06:04]} {[%emt
00:00:14]} 16. Rfd1 {[%clk 00:02:45]} {[%emt 00:00:17]} Rfd8 {[%clk 00:06:00]}
{[%emt 00:00:07]} 17. Kh1 {[%clk 00:01:39]} {[%emt 00:01:08]} Nd7 {[%clk
00:05:27]} {[%emt 00:00:36]} 18. Qd2 {[%clk 00:01:28]} {[%emt 00:00:15]} Nc5
{[%clk 00:05:26]} {[%emt 00:00:04]} 19. Nd5 {[%clk 00:00:53]} {[%emt 00:00:39]}
Qxd2 {[%clk 00:05:19]} {[%emt 00:00:09]} 20. Nxe7+ {[%clk 00:00:53]} {[%emt
00:00:03]} Kf8 {[%clk 00:05:22]} 21. Bxd2 {[%clk 00:00:23]} {[%emt 00:00:33]}
Kxe7 {[%clk 00:05:21]} {[%emt 00:00:03]} 22. Bc3 {[%clk 00:00:16]} {[%emt
00:00:11]} Bxe4 {[%clk 00:05:17]} {[%emt 00:00:07]} 23. Bxg7 {[%clk 00:00:06]}
{[%emt 00:00:13]} Bxf3 {[%clk 00:05:18]} {[%emt 00:00:02]} 24. gxf3 {[%clk
00:00:08]} Nb3 {[%clk 00:05:11]} {[%emt 00:00:10]} 25. Ra3 {[%clk 00:00:09]}
{[%emt 00:00:02]} Na5 {[%clk 00:05:11]} {[%emt 00:00:02]} 26. b3 {[%clk
00:00:11]} {[%emt 00:00:02]} Nc6 {[%clk 00:05:13]} {[%emt 00:00:01]} 27. Bc3
{[%clk 00:00:12]} {[%emt 00:00:02]} a5 {[%clk 00:05:15]} {[%emt 00:00:01]} 28.
Raa1 {[%clk 00:00:14]} d5 {[%clk 00:05:08]} {[%emt 00:00:10]} 29. cxd5 {[%clk
00:00:14]} {[%emt 00:00:03]} Rxd5 {[%clk 00:05:09]} {[%emt 00:00:01]} 30. Rxd5
{[%clk 00:00:16]} exd5 {[%clk 00:05:11]} {[%emt 00:00:01]} 31. Rd1 {[%clk
00:00:18]} {[%emt 00:00:01]} Rd8 {[%clk 00:05:03]} {[%emt 00:00:12]} 32. Kg1
{[%clk 00:00:20]} {[%emt 00:00:01]} d4 {[%clk 00:05:04]} 33. Bd2 {[%clk
00:00:22]} Kf6 {[%clk 00:05:06]} {[%emt 00:00:02]} 34. Kf2 {[%clk 00:00:24]}
Kf5 {[%clk 00:05:07]} {[%emt 00:00:02]} 35. Rg1 {[%clk 00:00:26]} f6 {[%clk
00:05:08]} {[%emt 00:00:03]} 36. Rg7 {[%clk 00:00:28]} {[%emt 00:00:01]} d3
{[%clk 00:05:08]} {[%emt 00:00:03]} 37. Rxb7 {[%clk 00:00:26]} {[%emt
00:00:05]} Nd4 {[%clk 00:05:08]} {[%emt 00:00:04]} 38. Be3 {[%clk 00:00:10]}
{[%emt 00:00:18]} Nc2 {[%clk 00:05:05]} {[%emt 00:00:05]} 39. Rb5+ {[%clk
00:00:12]} {[%emt 00:00:01]} Kg6 {[%clk 00:05:07]} 40. Bd2 {[%clk 00:00:12]}
{[%emt 00:00:04]} Nd4 {[%clk 00:05:07]} {[%emt 00:00:02]} 41. Rb7 {[%clk
00:00:11]} {[%emt 00:00:05]} Re8 {[%clk 00:04:49]} {[%emt 00:00:22]} 42. Bxa5
{[%clk 00:00:07]} {[%emt 00:00:06]} Re2+ {[%clk 00:04:50]} {[%emt 00:00:01]} 43.
Kf1 {[%clk 00:00:09]} Nxf3 {[%clk 00:04:50]} {[%emt 00:00:03]} 44. f5+ {[%clk
00:00:06]} {[%emt 00:00:06]} Kxf5 {[%clk 00:04:49]} {[%emt 00:00:04]} 45. Rxh7
{[%clk 00:00:07]} {[%emt 00:00:02]} Nxh2+ {[%clk 00:04:47]} {[%emt 00:00:05]}
46. Kg1 {[%clk 00:00:09]} {[%emt 00:00:02]} Nf3+ {[%clk 00:04:44]} {[%emt
00:00:06]} 47. Kf1 {[%clk 00:00:10]} {[%emt 00:00:02]} Rb2 {[%clk 00:04:25]}
{[%emt 00:00:21]} 48. Rd7 {[%clk 00:00:06]} {[%emt 00:00:08]} Rxb3 {[%clk
00:04:23]} {[%emt 00:00:05]} 49. Bc7 {[%clk 00:00:05]} {[%emt 00:00:04]} Ne5
{[%clk 00:04:19]} {[%emt 00:00:07]} 50. Rd8 {[%clk 00:00:05]} {[%emt 00:00:02]}
Ra3 {[%clk 00:04:18]} {[%emt 00:00:05]} 51. a5 {[%clk 00:00:07]} Ke4 {[%clk
00:04:11]} {[%emt 00:00:10]} 52. Bb6 {[%clk 00:00:09]} {[%emt 00:00:01]} Nc4
{[%clk 00:04:07]} {[%emt 00:00:06]} 53. Rd4+ {[%clk 00:00:11]} {[%emt
00:00:02]} Kf3 {[%clk 00:04:06]} {[%emt 00:00:05]} 54. Kg1 {[%clk 00:00:05]}
{[%emt 00:00:08]} Ne3 {[%clk 00:03:56]} {[%emt 00:00:12]} 0-1

[Event "Chess Stars Match"]
[Site "Teatro Capri, Paterna, Spain"]
[Date "2019.12.15"]
[Round "5.1"]
[White "Howell, David W L"]
[Black "Macias Pino, Diego"]
[Result "1-0"]
[TimeControl "7m+3s"]
[WhiteTitle "GM"]
[WhiteFideId "410608"]
[BlackFideId "24529133"]
[WhiteElo "2676"]
[BlackElo "2161"]

1. g3 {[%clk 00:03:03]} {[%emt 00:00:02]} d5 {[%clk 00:06:05]} {[%emt
00:00:02]} 2. Nf3 {[%clk 00:03:03]} {[%emt 00:00:02]} c6 {[%clk 00:06:06]}
{[%emt 00:00:02]} 3. Bg2 {[%clk 00:03:03]} {[%emt 00:00:03]} Nf6 {[%clk
00:06:08]} {[%emt 00:00:02]} 4. c4 {[%clk 00:03:04]} {[%emt 00:00:03]} g6
{[%clk 00:05:38]} {[%emt 00:00:32]} 5. b3 {[%clk 00:02:53]} {[%emt 00:00:14]}
Bg7 {[%clk 00:05:39]} {[%emt 00:00:02]} 6. Bb2 {[%clk 00:02:55]} {[%emt
00:00:01]} Bg4 {[%clk 00:05:39]} {[%emt 00:00:03]} 7. d3 {[%clk 00:02:48]}
{[%emt 00:00:10]} O-O {[%clk 00:05:33]} {[%emt 00:00:09]} 8. Nbd2 {[%clk
00:02:49]} {[%emt 00:00:02]} Re8 {[%clk 00:05:30]} {[%emt 00:00:07]} 9. O-O
{[%clk 00:02:28]} {[%emt 00:00:24]} Nbd7 {[%clk 00:05:27]} {[%emt 00:00:06]} 10.
Rc1 {[%clk 00:02:22]} {[%emt 00:00:09]} e5 {[%clk 00:05:23]} {[%emt 00:00:07]}
11. cxd5 {[%clk 00:02:19]} {[%emt 00:00:05]} cxd5 {[%clk 00:05:23]} {[%emt
00:00:03]} 12. h3 {[%clk 00:02:17]} {[%emt 00:00:05]} Bxf3 {[%clk 00:05:12]}
{[%emt 00:00:15]} 13. exf3 {[%clk 00:01:57]} {[%emt 00:00:23]} Qa5 {[%clk
00:05:02]} {[%emt 00:00:13]} 14. a3 {[%clk 00:01:56]} {[%emt 00:00:04]} Rac8
{[%clk 00:05:01]} {[%emt 00:00:04]} 15. b4 {[%clk 00:01:54]} {[%emt 00:00:05]}
Qa6 {[%clk 00:04:51]} {[%emt 00:00:13]} 16. Qb3 {[%clk 00:01:54]} {[%emt
00:00:03]} Qd6 {[%clk 00:04:25]} {[%emt 00:00:29]} 17. Rfe1 {[%clk 00:01:47]}
{[%emt 00:00:10]} Bh6 {[%clk 00:03:50]} {[%emt 00:00:39]} 18. Rxc8 {[%clk
00:01:18]} {[%emt 00:00:32]} Rxc8 {[%clk 00:03:47]} {[%emt 00:00:05]} 19. Qd1
{[%clk 00:01:19]} {[%emt 00:00:01]} Qa6 {[%clk 00:02:58]} {[%emt 00:00:53]} 20.
Nb3 {[%clk 00:01:12]} {[%emt 00:00:10]} Qd6 {[%clk 00:02:35]} {[%emt 00:00:27]}
21. d4 {[%clk 00:01:03]} {[%emt 00:00:12]} e4 {[%clk 00:02:26]} {[%emt
00:00:12]} 22. fxe4 {[%clk 00:00:55]} {[%emt 00:00:11]} Nxe4 {[%clk 00:02:25]}
{[%emt 00:00:04]} 23. Nc5 {[%clk 00:00:57]} {[%emt 00:00:01]} b6 {[%clk
00:01:58]} {[%emt 00:00:30]} 24. Nxe4 {[%clk 00:00:57]} {[%emt 00:00:03]} dxe4
{[%clk 00:02:00]} 25. Bxe4 {[%clk 00:00:56]} {[%emt 00:00:04]} Bg7 {[%clk
00:02:02]} 26. Qd3 {[%clk 00:00:52]} {[%emt 00:00:07]} Nf6 {[%clk 00:02:01]}
{[%emt 00:00:04]} 27. Bf3 {[%clk 00:00:50]} {[%emt 00:00:05]} Rd8 {[%clk
00:01:48]} {[%emt 00:00:16]} 28. Kg2 {[%clk 00:00:51]} {[%emt 00:00:01]} Nd5
{[%clk 00:01:47]} {[%emt 00:00:05]} 29. Qc4 {[%clk 00:00:41]} {[%emt 00:00:13]}
Nc7 {[%clk 00:01:41]} {[%emt 00:00:10]} 30. Bc1 {[%clk 00:00:36]} {[%emt
00:00:08]} Ne6 {[%clk 00:00:51]} {[%emt 00:00:53]} 31. d5 {[%clk 00:00:33]}
{[%emt 00:00:06]} Nd4 {[%clk 00:00:53]} 32. Bg5 {[%clk 00:00:15]} {[%emt
00:00:21]} Nxf3 {[%clk 00:00:43]} {[%emt 00:00:13]} 33. Kxf3 {[%clk 00:00:17]}
{[%emt 00:00:01]} f6 {[%clk 00:00:36]} {[%emt 00:00:10]} 34. Bf4 {[%clk
00:00:14]} {[%emt 00:00:06]} Qxd5+ {[%clk 00:00:38]} {[%emt 00:00:01]} 35.
Qxd5+ {[%clk 00:00:10]} Rxd5 {[%clk 00:00:40]} 36. Re7 {[%clk 00:00:10]} {[%emt
00:00:03]} Rd3+ {[%clk 00:00:42]} {[%emt 00:00:02]} 37. Ke4 {[%clk 00:00:11]}
{[%emt 00:00:01]} Rxa3 {[%clk 00:00:42]} {[%emt 00:00:03]} 38. Kd5 {[%clk
00:00:13]} Bf8 {[%clk 00:00:40]} {[%emt 00:00:06]} 39. Re4 {[%clk 00:00:06]}
{[%emt 00:00:10]} Rb3 {[%clk 00:00:33]} {[%emt 00:00:10]} 40. Kc6 {[%clk
00:00:06]} {[%emt 00:00:04]} Rxb4 {[%clk 00:00:26]} {[%emt 00:00:09]} 41. Re8
{[%clk 00:00:07]} {[%emt 00:00:01]} Kf7 {[%clk 00:00:27]} {[%emt 00:00:03]} 42.
Rxf8+ {[%clk 00:00:09]} {[%emt 00:00:02]} Kg7 {[%clk 00:00:21]} {[%emt
00:00:08]} 43. Ra8 {[%clk 00:00:08]} {[%emt 00:00:04]} g5 {[%clk 00:00:24]} 44.
Rxa7+ {[%clk 00:00:08]} {[%emt 00:00:02]} Kg6 {[%clk 00:00:26]} 45. Be3 {[%clk
00:00:10]} {[%emt 00:00:01]} b5 {[%clk 00:00:26]} {[%emt 00:00:03]} 46. Rb7
{[%clk 00:00:09]} {[%emt 00:00:04]} Rb1 {[%clk 00:00:27]} {[%emt 00:00:02]} 47.
Rxb5 {[%clk 00:00:06]} {[%emt 00:00:06]} Rh1 {[%clk 00:00:29]} 48. Kd5 {[%clk
00:00:08]} {[%emt 00:00:01]} Rxh3 {[%clk 00:00:29]} {[%emt 00:00:03]} 49. Ke4
{[%clk 00:00:10]} {[%emt 00:00:01]} Rh1 {[%clk 00:00:25]} {[%emt 00:00:07]} 50.
Rb6 {[%clk 00:00:12]} {[%emt 00:00:01]} Re1 {[%clk 00:00:24]} {[%emt 00:00:03]}
51. Kf3 {[%clk 00:00:08]} {[%emt 00:00:07]} Rd1 {[%clk 00:00:26]} {[%emt
00:00:01]} 52. Ke2 {[%clk 00:00:07]} {[%emt 00:00:04]} Rd7 {[%clk 00:00:27]}
{[%emt 00:00:02]} 53. Bc5 {[%clk 00:00:09]} {[%emt 00:00:02]} h5 {[%clk
00:00:24]} {[%emt 00:00:06]} 54. Rd6 {[%clk 00:00:10]} {[%emt 00:00:01]} Re7+
{[%clk 00:00:24]} {[%emt 00:00:03]} 55. Kf3 {[%clk 00:00:12]} {[%emt 00:00:01]}
Rc7 {[%clk 00:00:17]} {[%emt 00:00:10]} 56. Bd4 {[%clk 00:00:13]} {[%emt
00:00:01]} Rf7 {[%clk 00:00:18]} {[%emt 00:00:01]} 57. Ke4 {[%clk 00:00:14]}
{[%emt 00:00:02]} g4 {[%clk 00:00:14]} {[%emt 00:00:07]} 58. Kf4 {[%clk
00:00:16]} {[%emt 00:00:01]} Rf8 {[%clk 00:00:15]} {[%emt 00:00:03]} 59. Re6
{[%clk 00:00:12]} {[%emt 00:00:06]} Rf7 {[%clk 00:00:16]} {[%emt 00:00:02]} 60.
Ke4 {[%clk 00:00:10]} {[%emt 00:00:05]} Kg5 {[%clk 00:00:17]} {[%emt 00:00:02]}
61. Be3+ {[%clk 00:00:12]} {[%emt 00:00:01]} Kg6 {[%clk 00:00:19]} {[%emt
00:00:01]} 62. Kd5 {[%clk 00:00:14]} Rd7+ {[%clk 00:00:17]} {[%emt 00:00:06]}
63. Rd6 {[%clk 00:00:15]} {[%emt 00:00:02]} Rf7 {[%clk 00:00:18]} {[%emt
00:00:01]} 64. Ke6 {[%clk 00:00:17]} {[%emt 00:00:01]} Ra7 {[%clk 00:00:14]}
{[%emt 00:00:06]} 65. Bxa7 {[%clk 00:00:17]} {[%emt 00:00:04]} 1-0